fUST/lending_fUST_20250808
["ID","MTS","AMOUNT","RATE_DAILY","PERIOD"]
[377874802,1754589093422,-325.0,0.00023689,3]
[377874803,1754589093432,-151.0,0.00023735,7]
[377874804,1754589093442,-3052.067154,0.00023735,7]
[377874805,1754589093452,-3052.067154,0.00023735,7]
[377874806,1754589093461,-5888.0,0.00023779,2]
[377874807,1754589093471,-500.0,0.00023808,2]
[377874808,1754589093481,-450.0,0.00023816,2]
[377874809,1754589093613,-2000.0,0.00023816,2]
[377874810,1754589093623,-1000.0,0.00023816,2]
[377874811,1754589093633,-500.0,0.00023816,2]
[377874812,1754589093646,-2000.0,0.00023816,2]
[377874813,1754589093656,-2000.0,0.00023816,2]
[377874814,1754589093666,-2000.0,0.00023816,2]
[377874815,1754589093675,-4309.0,0.00023833,2]
[377874816,1754589093685,-151.0,0.00023835,7]
[377874817,1754589093695,-151.0,0.00023835,7]
[377874818,1754589093704,-151.0,0.00023835,7]
[377874819,1754589093714,-151.0,0.00023835,7]
[377874820,1754589093723,-151.0,0.00023835,7]
[377874821,1754589093733,-191.884738,0.00023835,7]
[377874822,1754589093743,-151.0,0.00023835,7]
[377874823,1754589093753,-151.0,0.00023835,7]
[377874824,1754589093762,-460.0,0.00023835,2]
[377874825,1754589093772,-569.86,0.00023835,2]
[377874826,1754589093781,-151.0,0.00023835,7]
[377874827,1754589093791,-460.0,0.00023835,2]
[377874828,1754589093801,-460.0,0.00023835,2]
[377874829,1754589093811,-177.5904832,0.00023835,2]
[377874830,1754589093821,-460.0,0.00023835,2]
[377874831,1754589093830,-460.0,0.00023835,2]
[377874832,1754589093840,-460.0,0.00023835,2]
[377874833,1754589093849,-496.145155,0.00023835,7]
[377874834,1754589093859,-496.145155,0.00023835,7]
[377874835,1754589093868,-460.0,0.00023835,2]
[377874836,1754589093877,-460.0,0.00023835,2]
[377874837,1754589093887,-460.0,0.00023835,2]
[377874838,1754589093896,-460.0,0.00023835,2]
[377874839,1754589093906,-460.0,0.00023835,2]
[377874840,1754589093915,-460.0,0.00023835,2]
[377874841,1754589093925,-460.0,0.00023835,2]
[377874842,1754589093936,-460.0,0.00023835,2]
[377874843,1754589093945,-460.0,0.00023835,2]
[377874844,1754589093955,-460.0,0.00023835,2]
[377874845,1754589093964,-460.0,0.00023835,2]
[377874846,1754589093975,-726.3,0.00023835,2]
[377874847,1754589093984,-4258.89,0.00023835,2]
[377874848,1754589093996,-460.0,0.00023835,2]
[377874849,1754589094009,-460.0,0.00023835,2]
[377874850,1754589094018,-460.0,0.00023835,2]
[377874851,1754589094028,-460.0,0.00023835,2]
[377874852,1754589094038,-541.96,0.00023835,2]
[377874853,1754589094048,-460.0,0.00023835,2]
[377874854,1754589094057,-460.0,0.00023835,2]
[377874855,1754589094067,-522.44431486,0.00023835,2]
[377874856,1754589094077,-460.0,0.00023835,2]
[377874857,1754589094087,-460.0,0.00023835,2]
[377874858,1754589094097,-460.0,0.00023835,2]
[377874859,1754589094107,-460.0,0.00023835,2]
[377874860,1754589094117,-460.0,0.00023835,2]
[377874861,1754589094127,-460.0,0.00023835,2]
[377874862,1754589094138,-460.0,0.00023835,2]
[377874863,1754589094149,-1141.82,0.00023835,2]
[377874864,1754589094160,-460.0,0.00023835,2]
[377874865,1754589094170,-460.0,0.00023835,2]
[377874866,1754589094180,-460.0,0.00023835,2]
[377874867,1754589094189,-296.12390763,0.00023835,2]
[377874868,1754589094199,-460.0,0.00023835,2]
[377874869,1754589094209,-460.0,0.00023835,2]
[377874870,1754589094219,-460.0,0.00023835,2]
[377874871,1754589094229,-460.0,0.00023835,2]
[377874872,1754589094239,-229.77,0.00023835,2]
[377874873,1754589094249,-460.0,0.00023835,2]
[377874874,1754589094258,-1232.26,0.00023835,2]
[377874875,1754589094269,-460.0,0.00023835,2]
[377874876,1754589094278,-460.0,0.00023835,2]
[377874877,1754589094288,-460.0,0.00023835,2]
[377874878,1754589094298,-478.91111412,0.00023835,2]
[377874879,1754589094308,-460.0,0.00023835,2]
[377874880,1754589094317,-460.0,0.00023835,2]
[377874881,1754589094327,-460.0,0.00023835,2]
[377874882,1754589094337,-460.0,0.00023835,2]
[377874883,1754589094347,-1649.4,0.00023835,2]
[377874884,1754589094357,-460.0,0.00023835,2]
[377874885,1754589094367,-460.0,0.00023835,2]
[377874886,1754589094377,-460.0,0.00023835,2]
[377874887,1754589094388,-460.0,0.00023835,2]
[377874888,1754589094398,-562.79501128,0.00023835,2]
[377874889,1754589094407,-460.0,0.00023835,2]
[377874890,1754589094417,-460.0,0.00023835,2]
[377874891,1754589094427,-460.0,0.00023835,2]
[377874892,1754589094436,-460.0,0.00023835,2]
[377874893,1754589094446,-460.0,0.00023835,2]
[377874894,1754589094456,-460.0,0.00023835,2]
[377874895,1754589094466,-460.0,0.00023835,2]
[377874896,1754589094476,-460.0,0.00023835,2]
[377874897,1754589094485,-920.95,0.00023835,2]
[377874898,1754589094495,-460.0,0.00023835,2]
[377874899,1754589094505,-462.41234944,0.00023835,2]
[377874900,1754589094514,-460.0,0.00023835,2]
[377874901,1754589094524,-460.0,0.00023835,2]
[377874902,1754589094533,-785.09,0.00023835,2]
[377874903,1754589094543,-460.0,0.00023835,2]
[377874904,1754589094552,-460.0,0.00023835,2]
[377874905,1754589094562,-1321.78,0.00023835,2]
[377874906,1754589094571,-460.0,0.00023835,2]
[377874907,1754589094580,-930.97,0.00023835,2]
[377874908,1754589094590,-460.0,0.00023835,2]
[377874909,1754589094599,-469.07765261,0.00023835,2]
[377874910,1754589094609,-501.46,0.00023835,2]
[377874911,1754589094618,-814.23,0.00023835,2]
[377874912,1754589094627,-460.0,0.00023835,2]
[377874913,1754589094639,-460.0,0.00023835,2]
[377874914,1754589094649,-1720.3,0.00023835,2]
[377874915,1754589094658,-460.0,0.00023835,2]
[377874916,1754589094667,-460.0,0.00023835,2]
[377874917,1754589094676,-460.0,0.00023835,2]
[377874918,1754589094686,-460.0,0.00023835,2]
[377874919,1754589094695,-460.0,0.00023835,2]
[377874920,1754589094704,-460.0,0.00023835,2]
[377874921,1754589094714,-460.0,0.00023835,2]
[377874922,1754589094723,-460.0,0.00023835,2]
[377874923,1754589094733,-460.0,0.00023835,2]
[377874924,1754589094742,-460.0,0.00023835,2]
[377874925,1754589094751,-460.0,0.00023835,2]
[377874926,1754589094761,-536.85,0.00023835,2]
[377874927,1754589094770,-460.0,0.00023835,2]
[377874928,1754589094780,-1339.1,0.00023835,2]
[377874929,1754589094789,-460.0,0.00023835,2]
[377874930,1754589094799,-460.0,0.00023835,2]
[377874931,1754589094808,-472.29365182,0.00023835,2]
[377874932,1754589094818,-460.0,0.00023835,2]
[377874933,1754589094827,-460.0,0.00023835,2]
[377874934,1754589094837,-460.0,0.00023835,2]
[377874935,1754589094846,-478.81629105,0.00023835,2]
[377874936,1754589094857,-460.0,0.00023835,2]
[377874937,1754589094867,-460.0,0.00023835,2]
[377874938,1754589094876,-460.0,0.00023835,2]
[377874939,1754589094885,-460.0,0.00023835,2]
[377874940,1754589094896,-460.0,0.00023835,2]
[377874941,1754589094905,-460.0,0.00023835,2]
[377874942,1754589094914,-463.07502882,0.00023835,2]
[377874943,1754589094924,-460.0,0.00023835,2]
[377874944,1754589094935,-460.0,0.00023835,2]
[377874945,1754589094945,-460.0,0.00023835,2]
[377874946,1754589094954,-808.27,0.00023835,2]
[377874947,1754589094963,-460.0,0.00023835,2]
[377874948,1754589094975,-460.0,0.00023835,2]
[377874949,1754589094985,-567.74946114,0.00023835,2]
[377874950,1754589095000,-460.0,0.00023835,2]
[377874951,1754589095011,-460.0,0.00023835,2]
[377874952,1754589095020,-460.0,0.00023835,2]
[377874953,1754589095030,-460.0,0.00023835,2]
[377874954,1754589095040,-460.0,0.00023835,2]
[377874955,1754589095049,-460.0,0.00023835,2]
[377874956,1754589095058,-572.34423987,0.00023835,2]
[377874957,1754589095070,-460.0,0.00023835,2]
[377874958,1754589095080,-460.0,0.00023835,2]
[377874959,1754589095091,-460.0,0.00023835,2]
[377874960,1754589095101,-460.0,0.00023835,2]
[377874961,1754589095111,-465.24,0.00023835,2]
[377874962,1754589095122,-460.0,0.00023835,2]
[377874963,1754589095132,-460.0,0.00023835,2]
[377874964,1754589095142,-460.0,0.00023835,2]
[377874965,1754589095152,-1315.05,0.00023835,2]
[377874966,1754589095163,-460.0,0.00023835,2]
[377874967,1754589095174,-460.0,0.00023835,2]
[377874968,1754589095184,-460.0,0.00023835,2]
[377874969,1754589095193,-460.0,0.00023835,2]
[377874970,1754589095203,-460.0,0.00023835,2]
[377874971,1754589095213,-460.0,0.00023835,2]
[377874972,1754589095222,-460.0,0.00023835,2]
[377874973,1754589095233,-460.0,0.00023835,2]
[377874974,1754589095242,-460.0,0.00023835,2]
[377874975,1754589095252,-460.0,0.00023835,2]
[377874976,1754589095262,-460.0,0.00023835,2]
[377874977,1754589095271,-521.0,0.00023835,2]
[377874978,1754589095281,-460.0,0.00023835,2]
[377874979,1754589095291,-460.0,0.00023835,2]
[377874980,1754589095301,-1003.1,0.00023835,2]
[377874981,1754589095310,-842.23,0.00023835,2]
[377874982,1754589095320,-460.0,0.00023835,2]
[377874983,1754589095329,-512.74,0.00023835,2]
[377874984,1754589095339,-460.0,0.00023835,2]
[377874985,1754589095348,-480.67900679,0.00023835,2]
[377874986,1754589095359,-460.0,0.00023835,2]
[377874987,1754589095369,-460.0,0.00023835,2]
[377874988,1754589095378,-460.0,0.00023835,2]
[377874989,1754589095389,-460.0,0.00023835,2]
[377874990,1754589095399,-460.0,0.00023835,2]
[377874991,1754589095408,-460.0,0.00023835,2]
[377874992,1754589095419,-460.0,0.00023835,2]
[377874993,1754589095428,-2023.68,0.00023835,2]
[377874994,1754589095439,-460.0,0.00023835,2]
[377874995,1754589095448,-1722.81,0.00023835,2]
[377874996,1754589095458,-460.0,0.00023835,2]
[377874997,1754589095468,-460.0,0.00023835,2]
[377874998,1754589095477,-460.0,0.00023835,2]
[377874999,1754589095486,-1805.48,0.00023835,2]
[377875000,1754589095496,-460.0,0.00023835,2]
[377875001,1754589095505,-479.16,0.00023835,2]
[377875002,1754589095515,-475.28,0.00023835,2]
[377875003,1754589095638,-460.0,0.00023835,2]
[377875004,1754589095649,-511.83,0.00023835,2]
[377875005,1754589095658,-544.45258575,0.00023835,2]
[377875006,1754589095667,-460.0,0.00023835,2]
[377875007,1754589095676,-1677.96,0.00023835,2]
[377875008,1754589095686,-496.73,0.00023835,2]
[377875009,1754589095696,-460.0,0.00023835,2]
[377875010,1754589095706,-2679.67,0.00023835,2]
[377875011,1754589095716,-479.16,0.00023835,2]
[377875012,1754589095725,-460.0,0.00023835,2]
[377875013,1754589095735,-260.25751438,0.00023835,2]
[377875014,1754589095747,-1601.12,0.00023835,2]
[377875015,1754589095756,-2200.78,0.00023835,2]
[377875016,1754589095768,-1202.59,0.00023835,2]
[377875017,1754589095777,-893.12,0.00023835,2]
[377875018,1754589095787,-460.0,0.00023835,2]
[377875019,1754589095796,-1228.68,0.00023835,2]
[377875020,1754589095806,-460.0,0.00023835,2]
[377875021,1754589095816,-460.0,0.00023835,2]
[377875022,1754589095826,-460.0,0.00023835,2]
[377875023,1754589095835,-460.0,0.00023835,2]
[377875024,1754589095844,-460.0,0.00023835,2]
[377875025,1754589095855,-460.0,0.00023835,2]
[377875026,1754589095865,-460.0,0.00023835,2]
[377875027,1754589095874,-369.429668,0.00023835,2]
[377875028,1754589095884,-2063.1,0.00023835,2]
[377875029,1754589095895,-460.0,0.00023835,2]
[377875030,1754589095904,-478.03908703,0.00023835,2]
[377875031,1754589095914,-4568.18,0.00023835,2]
[377875032,1754589095923,-1013.49,0.00023835,2]
[377875033,1754589095933,-460.0,0.00023835,2]
[377875034,1754589095942,-460.0,0.00023835,2]
[377875035,1754589095951,-307.11340481,0.00023835,2]
[377875036,1754589095961,-541.96,0.00023835,2]
[377875037,1754589095972,-460.0,0.00023835,2]
[377875038,1754589095983,-460.0,0.00023835,2]
[377875039,1754589095996,-1175.66,0.00023835,2]
[377875040,1754589096007,-460.0,0.00023835,2]
[377875041,1754589096018,-588.41,0.00023835,2]
[377875042,1754589096027,-2183.26,0.00023835,2]
[377875043,1754589096037,-476.89475432,0.00023835,2]
[377875044,1754589096047,-460.0,0.00023835,2]
[377875045,1754589096057,-500.0,0.00023835,2]
[377875046,1754589096067,-6185.67,0.00023835,2]
[377875047,1754589096077,-460.0,0.00023835,2]
[377875048,1754589096087,-9393.66,0.00023835,2]
[377875049,1754589096097,-671.87,0.00023835,2]
[377875050,1754589096107,-460.0,0.00023835,2]
[377875051,1754589096116,-3715.56,0.00023835,2]
[377875052,1754589096125,-460.0,0.00023835,2]
[377875053,1754589096135,-460.0,0.00023835,2]
[377875054,1754589096145,-617.56,0.00023835,2]
[377875055,1754589096154,-2605.25,0.00023835,2]
[377875056,1754589096163,-460.0,0.00023835,2]
[377875057,1754589096172,-3296.2,0.00023835,2]
[377875058,1754589096182,-991.4,0.00023835,2]
[377875059,1754589096192,-460.0,0.00023835,2]
[377875060,1754589096201,-460.0,0.00023835,2]
[377875061,1754589096211,-498.33,0.00023835,2]
[377875062,1754589096221,-1105.26,0.00023835,2]
[377875063,1754589096231,-836.29,0.00023835,2]
[377875064,1754589096240,-4226.84,0.00023835,2]
[377875065,1754589096250,-1771.43,0.00023835,2]
[377875066,1754589096260,-460.0,0.00023835,2]
[377875067,1754589096270,-460.0,0.00023835,2]
[377875068,1754589096280,-460.0,0.00023835,2]
[377875069,1754589096290,-461.42814951,0.00023835,2]
[377875070,1754589096299,-460.0,0.00023835,2]
[377875071,1754589096309,-460.0,0.00023835,2]
[377875072,1754589096318,-460.0,0.00023835,2]
[377875073,1754589096327,-715.56,0.00023835,2]
[377875074,1754589096337,-460.0,0.00023835,2]
[377875075,1754589096346,-1269.12,0.00023835,2]
[377875076,1754589096355,-3053.08,0.00023835,2]
[377875077,1754589096365,-460.0,0.00023835,2]
[377875078,1754589096374,-460.0,0.00023835,2]
[377875079,1754589096384,-760.87,0.00023835,2]
[377875080,1754589096394,-460.0,0.00023835,2]
[377875081,1754589096404,-1549.47,0.00023835,2]
[377875082,1754589096414,-396.65568362,0.00023835,2]
[377875083,1754589096423,-1562.82,0.00023835,2]
[377875084,1754589096432,-198.0,0.00023865,2]
[377875085,1754589096441,-151.0,0.00023865,2]
[377875086,1754589096451,-219.63285556,0.00023865,2]
[377875087,1754589096460,-151.0,0.00023865,2]
[377875088,1754589096470,-548.01908643,0.00023865,2]
[377875089,1754589096479,-151.0,0.00023865,2]
[377875090,1754589096489,-500.0,0.00023865,2]
[377875091,1754589096498,-152.69560173,0.00023865,2]
[377875092,1754589096508,-151.0,0.00023865,2]
[377875093,1754589096518,-151.0,0.00023865,2]
[377875094,1754589096538,-500.0,0.00023865,2]
[377875095,1754589096555,-151.0,0.00023865,2]
[377875096,1754589096573,-151.0,0.00023865,2]
[377875097,1754589096591,-514.20798353,0.00023865,2]
[377875098,1754589096609,-255.0,0.00023865,2]
[377875099,1754589096625,-151.0,0.00023865,2]
[377875100,1754589096643,-151.0,0.00023865,2]
[377875101,1754589096657,-151.0,0.00023865,2]
[377875102,1754589096673,-302.0,0.00023865,2]
[377875103,1754589096692,-500.0,0.00023865,2]
[377875104,1754589096713,-151.0,0.00023865,7]
[377875105,1754589096725,-319.494968,0.00023865,7]
[377875106,1754589096744,-319.494968,0.00023865,7]
[377875107,1754589096762,-500.0,0.00023868,2]
[377875108,1754589096778,-360.0,0.00023885,2]
[377875109,1754589096794,-4309.0,0.00023894,2]
[377875110,1754589096810,-574.277666,0.00023966,2]
[377875111,1754589096825,-151.0,0.00023982,7]
[377875112,1754589096839,-151.0,0.00023982,7]
[377875113,1754589096853,-151.0,0.00023982,7]
[377875114,1754589096869,-1226.812263,0.00023982,7]
[377875115,1754589096884,-1226.812263,0.00023982,7]
[377875116,1754589096900,-239.192816,0.00023982,7]
[377875117,1754589096916,-239.192816,0.00023982,7]
[377875118,1754589096930,-2020.0,0.00023987,2]
[377875119,1754589096945,-3766.42077789,0.00024,3]
[377875120,1754589096960,-1699.06142133,0.00024,2]
[377875121,1754589096975,-322.90547651,0.00024,2]
[377875122,1754589096990,-455.3730055,0.00024,2]
[377875123,1754589097008,-1023.93026867,0.00024,7]
[377875124,1754589097022,-244.502984,0.00024,7]
[377875125,1754589097036,-151.0,0.00024,7]
[377875126,1754589097051,-151.0,0.00024,7]
[377875127,1754589097065,-527.57568145,0.00024,7]
[377875128,1754589097080,-160.0,0.00024,7]
[377875129,1754589097094,-216.52217562,0.00024,7]
[377875130,1754589097108,-160.0,0.00024,7]
[377875131,1754589097122,-231.83071243,0.00024,7]
[377875132,1754589097137,-160.0,0.00024,7]
[377875133,1754589097151,-160.0,0.00024,7]
[377875134,1754589097168,-312.16666667,0.00024,7]
[377875135,1754589097182,-160.0,0.00024,7]
[377875136,1754589097196,-151.668269,0.00024109,7]
[377875137,1754589097210,-151.0,0.00024109,7]
[377875138,1754589097224,-151.0,0.00024109,7]
[377875139,1754589097238,-151.0,0.00024109,7]
[377875140,1754589097252,-151.955716,0.00024109,7]
[377875141,1754589097266,-151.0,0.00024109,7]
[377875142,1754589097280,-151.0,0.00024109,7]
[377875143,1754589097295,-151.0,0.00024109,7]
[377875144,1754589097311,-432.790972,0.00024109,7]
[377875145,1754589097325,-432.790972,0.00024109,7]
[377875146,1754589097340,-382.399396,0.00024109,7]
[377875147,1754589097355,-382.399396,0.00024109,7]
[377875148,1754589097369,-151.0,0.00024109,7]
[377875149,1754589097385,-460.0,0.00024109,2]
[377875150,1754589097400,-569.86,0.00024109,2]
[377875151,1754589097415,-231.312791,0.00024109,7]
[377875152,1754589097430,-460.0,0.00024109,2]
[377875153,1754589097444,-460.0,0.00024109,2]
[377875154,1754589097459,-473.56099447,0.00024109,2]
[377875155,1754589097476,-460.0,0.00024109,2]
[377875156,1754589097490,-496.145155,0.00024109,7]
[377875157,1754589097505,-496.14515,0.00024109,7]
[377875158,1754589097520,-460.0,0.00024109,2]
[377875159,1754589097534,-474.77669239,0.00024109,2]
[377875160,1754589097548,-460.0,0.00024109,2]
[377875161,1754589097561,-460.0,0.00024109,2]
[377875162,1754589097576,-460.0,0.00024109,2]
[377875163,1754589097589,-460.0,0.00024109,2]
[377875164,1754589097603,-390.56212957,0.00024109,2]
[377875165,1754589097617,-460.0,0.00024109,2]
[377875166,1754589097632,-473.3698218,0.00024109,2]
[377875167,1754589097646,-460.0,0.00024109,2]
[377875168,1754589097660,-726.3,0.00024109,2]
[377875169,1754589097675,-467.23216925,0.00024109,2]
[377875170,1754589097688,-4258.89,0.00024109,2]
[377875171,1754589097703,-460.0,0.00024109,2]
[377875172,1754589097717,-460.0,0.00024109,2]
[377875173,1754589097731,-541.96,0.00024109,2]
[377875174,1754589097748,-460.0,0.00024109,2]
[377875175,1754589097762,-460.0,0.00024109,2]
[377875176,1754589097777,-460.0,0.00024109,2]
[377875177,1754589097790,-3052.067154,0.00024109,7]
[377875178,1754589097805,-3052.067154,0.00024109,7]
[377875179,1754589097820,-460.0,0.00024109,2]
[377875180,1754589097835,-460.0,0.00024109,2]
[377875181,1754589097849,-464.83962237,0.00024109,2]
[377875182,1754589098030,-460.0,0.00024109,2]
[377875183,1754589098040,-460.0,0.00024109,2]
[377875184,1754589098050,-460.0,0.00024109,2]
[377875185,1754589098059,-1141.82,0.00024109,2]
[377875186,1754589098069,-473.47606797,0.00024109,2]
[377875187,1754589098079,-460.0,0.00024109,2]
[377875188,1754589098089,-499.40293251,0.00024109,2]
[377875189,1754589098100,-460.0,0.00024109,2]
[377875190,1754589098110,-460.0,0.00024109,2]
[377875191,1754589098119,-460.0,0.00024109,2]
[377875192,1754589098129,-416.48045482,0.00024109,2]
[377875193,1754589098138,-460.0,0.00024109,2]
[377875194,1754589098147,-1232.26,0.00024109,2]
[377875195,1754589098157,-460.0,0.00024109,2]
[377875196,1754589098167,-460.0,0.00024109,2]
[377875197,1754589098176,-460.0,0.00024109,2]
[377875198,1754589098186,-460.0,0.00024109,2]
[377875199,1754589098196,-460.0,0.00024109,2]
[377875200,1754589098206,-1649.4,0.00024109,2]
[377875201,1754589098216,-460.0,0.00024109,2]
[377875202,1754589098225,-460.0,0.00024109,2]
[377875203,1754589098235,-460.0,0.00024109,2]
[377875204,1754589098244,-463.87659396,0.00024109,2]
[377875205,1754589098253,-460.0,0.00024109,2]
[377875206,1754589098263,-460.0,0.00024109,2]
[377875207,1754589098272,-460.0,0.00024109,2]
[377875208,1754589098283,-460.0,0.00024109,2]
[377875209,1754589098292,-409.58466523,0.00024109,2]
[377875210,1754589098302,-460.0,0.00024109,2]
[377875211,1754589098312,-460.0,0.00024109,2]
[377875212,1754589098322,-920.95,0.00024109,2]
[377875213,1754589098332,-461.67519469,0.00024109,2]
[377875214,1754589098341,-461.21430086,0.00024109,2]
[377875215,1754589098351,-460.0,0.00024109,2]
[377875216,1754589098361,-785.09,0.00024109,2]
[377875217,1754589098370,-460.0,0.00024109,2]
[377875218,1754589098380,-460.0,0.00024109,2]
[377875219,1754589098392,-1321.78,0.00024109,2]
[377875220,1754589098402,-930.97,0.00024109,2]
[377875221,1754589098412,-460.0,0.00024109,2]
[377875222,1754589098421,-501.46,0.00024109,2]
[377875223,1754589098431,-814.23,0.00024109,2]
[377875224,1754589098440,-460.0,0.00024109,2]
[377875225,1754589098450,-460.0,0.00024109,2]
[377875226,1754589098459,-1720.3,0.00024109,2]
[377875227,1754589098468,-460.0,0.00024109,2]
[377875228,1754589098478,-460.0,0.00024109,2]
[377875229,1754589098488,-460.0,0.00024109,2]
[377875230,1754589098497,-460.0,0.00024109,2]
[377875231,1754589098506,-460.0,0.00024109,2]
[377875232,1754589098515,-460.0,0.00024109,2]
[377875233,1754589098524,-460.0,0.00024109,2]
[377875234,1754589098534,-315.72091378,0.00024109,2]
[377875235,1754589098543,-460.0,0.00024109,2]
[377875236,1754589098552,-460.0,0.00024109,2]
[377875237,1754589098562,-460.0,0.00024109,2]
[377875238,1754589098571,-536.85,0.00024109,2]
[377875239,1754589098582,-473.40027041,0.00024109,2]
[377875240,1754589098591,-1339.1,0.00024109,2]
[377875241,1754589098601,-460.0,0.00024109,2]
[377875242,1754589098610,-460.0,0.00024109,2]
[377875243,1754589098619,-460.0,0.00024109,2]
[377875244,1754589098628,-467.18160452,0.00024109,2]
[377875245,1754589098637,-460.0,0.00024109,2]
[377875246,1754589098649,-460.0,0.00024109,2]
[377875247,1754589098659,-460.0,0.00024109,2]
[377875248,1754589098668,-460.0,0.00024109,2]
[377875249,1754589098677,-465.59172773,0.00024109,2]
[377875250,1754589098686,-460.0,0.00024109,2]
[377875251,1754589098695,-460.0,0.00024109,2]
[377875252,1754589098705,-460.0,0.00024109,2]
[377875253,1754589098714,-460.0,0.00024109,2]
[377875254,1754589098723,-460.0,0.00024109,2]
[377875255,1754589098732,-808.27,0.00024109,2]
[377875256,1754589098741,-376.87757587,0.00024109,2]
[377875257,1754589098751,-460.0,0.00024109,2]
[377875258,1754589098761,-460.0,0.00024109,2]
[377875259,1754589098770,-460.0,0.00024109,2]
[377875260,1754589098779,-460.0,0.00024109,2]
[377875261,1754589098788,-460.0,0.00024109,2]
[377875262,1754589098797,-460.0,0.00024109,2]
[377875263,1754589098807,-460.0,0.00024109,2]
[377875264,1754589098816,-294.37271199,0.00024109,2]
[377875265,1754589098826,-460.0,0.00024109,2]
[377875266,1754589098835,-460.0,0.00024109,2]
[377875267,1754589098845,-465.24,0.00024109,2]
[377875268,1754589098854,-460.0,0.00024109,2]
[377875269,1754589098864,-311.45030657,0.00024109,2]
[377875270,1754589098873,-1315.05,0.00024109,2]
[377875271,1754589098883,-460.0,0.00024109,2]
[377875272,1754589098893,-460.0,0.00024109,2]
[377875273,1754589098902,-460.0,0.00024109,2]
[377875274,1754589098912,-465.65240056,0.00024109,2]
[377875275,1754589098921,-460.0,0.00024109,2]
[377875276,1754589098930,-460.0,0.00024109,2]
[377875277,1754589098939,-460.0,0.00024109,2]
[377875278,1754589098949,-460.0,0.00024109,2]
[377875279,1754589098959,-460.0,0.00024109,2]
[377875280,1754589098969,-521.0,0.00024109,2]
[377875281,1754589098979,-460.0,0.00024109,2]
[377875282,1754589098988,-460.0,0.00024109,2]
[377875283,1754589099003,-1003.1,0.00024109,2]
[377875284,1754589099013,-842.23,0.00024109,2]
[377875285,1754589099023,-460.0,0.00024109,2]
[377875286,1754589099033,-512.74,0.00024109,2]
[377875287,1754589099042,-460.0,0.00024109,2]
[377875288,1754589099054,-460.0,0.00024109,2]
[377875289,1754589099063,-460.0,0.00024109,2]
[377875290,1754589099074,-460.0,0.00024109,2]
[377875291,1754589099086,-460.0,0.00024109,2]
[377875292,1754589099095,-460.0,0.00024109,2]
[377875293,1754589099104,-463.98156226,0.00024109,2]
[377875294,1754589099114,-460.0,0.00024109,2]
[377875295,1754589099123,-2023.68,0.00024109,2]
[377875296,1754589099132,-460.0,0.00024109,2]
[377875297,1754589099142,-1722.81,0.00024109,2]
[377875298,1754589099152,-460.0,0.00024109,2]
[377875299,1754589099164,-460.0,0.00024109,2]
[377875300,1754589099174,-1805.48,0.00024109,2]
[377875301,1754589099184,-460.0,0.00024109,2]